[Event "Titled Tuesday Blitz May 23 Early 2023"]
[White "Agibileg, Uurtsaikh"]
[Black "Fier, Alexandr"]
[WhiteFideId "4901606"]
[BlackFideId "2107139"]
[WhiteElo "2353"]
[BlackElo "2610"]
[Result "1-0"]
[Round "05"]
[TimeControl "180+2"]
[Date "2023.05.23"]
[WhiteClock "0:00:08"]
[BlackClock "0:00:23"]

1. d4 {[%clk 0:03:00]}  Nf6 {[%clk 0:02:58]} 2. c4 {[%clk 0:02:57]}  c5 {[%clk 0:02:58]} 3. d5 {[%clk 0:02:51]}  e6 {[%clk 0:02:58]} 4. Nc3 {[%clk 0:02:44]}  exd5 {[%clk 0:02:58]} 5. cxd5 {[%clk 0:02:45]}  d6 {[%clk 0:02:58]} 6. e4 {[%clk 0:02:44]}  g6 {[%clk 0:02:58]} 7. Bd3 {[%clk 0:02:44]}  Bg7 {[%clk 0:02:58]} 8. h3 {[%clk 0:02:37]}  Nbd7 {[%clk 0:02:56]} 9. Nf3 {[%clk 0:02:37]}  Nh5 {[%clk 0:02:56]} 10. O-O {[%clk 0:02:36]}  Ne5 {[%clk 0:02:50]} 11. Be2 {[%clk 0:02:36]}  Nxf3+ {[%clk 0:02:50]} 12. Bxf3 {[%clk 0:02:37]}  Qh4 {[%clk 0:02:50]} 13. Bxh5 {[%clk 0:02:33]}  gxh5 {[%clk 0:02:50]} 14. Nb5 {[%clk 0:02:03]}  Ke7 {[%clk 0:02:17]} 15. g3 {[%clk 0:01:43]}  Qxh3 {[%clk 0:02:13]} 16. Bg5+ {[%clk 0:01:43]}  f6 {[%clk 0:02:03]} 17. Bf4 {[%clk 0:01:43]}  Rd8 {[%clk 0:02:01]} 18. b4 {[%clk 0:01:28]}  a6 {[%clk 0:01:55]} 19. Nxd6 {[%clk 0:01:27]}  Rxd6 {[%clk 0:01:45]} 20. Bxd6+ {[%clk 0:01:26]}  Kxd6 {[%clk 0:01:46]} 21. bxc5+ {[%clk 0:01:26]}  Ke7 {[%clk 0:01:46]} 22. Rb1 {[%clk 0:01:16]}  h4 {[%clk 0:01:40]} 23. Rb3 {[%clk 0:01:10]}  Qg4 {[%clk 0:01:39]} 24. Qxg4 {[%clk 0:01:05]}  Bxg4 {[%clk 0:01:38]} 25. Rxb7+ {[%clk 0:01:05]}  Kf8 {[%clk 0:01:39]} 26. Rfb1 {[%clk 0:01:02]}  Re8 {[%clk 0:01:34]} 27. Rb8 {[%clk 0:00:59]}  hxg3 {[%clk 0:01:29]} 28. Rxe8+ {[%clk 0:00:56]}  Kxe8 {[%clk 0:01:30]} 29. fxg3 {[%clk 0:00:56]}  f5 {[%clk 0:01:27]} 30. Rb8+ {[%clk 0:00:56]}  Kf7 {[%clk 0:01:28]} 31. Rb7+ {[%clk 0:00:54]}  Kg6 {[%clk 0:01:26]} 32. exf5+ {[%clk 0:00:52]}  Bxf5 {[%clk 0:01:26]} 33. c6 {[%clk 0:00:52]}  Bd4+ {[%clk 0:01:24]} 34. Kh2 {[%clk 0:00:52]}  Be5 {[%clk 0:01:19]} 35. Rb6 {[%clk 0:00:37]}  Kg5 {[%clk 0:01:14]} 36. Rxa6 {[%clk 0:00:36]}  h5 {[%clk 0:01:14]} 37. Ra4 {[%clk 0:00:32]}  Bg4 {[%clk 0:01:07]} 38. Kg2 {[%clk 0:00:29]}  Kf6 {[%clk 0:01:06]} 39. Rc4 {[%clk 0:00:24]}  Bc7 {[%clk 0:01:04]} 40. Re4 {[%clk 0:00:14]}  Bf5 {[%clk 0:01:00]} 41. Re8 {[%clk 0:00:14]}  Kf7 {[%clk 0:00:58]} 42. Rh8 {[%clk 0:00:14]}  Kg6 {[%clk 0:00:46]} 43. Kh2 {[%clk 0:00:11]}  Bd6 {[%clk 0:00:37]} 44. a4 {[%clk 0:00:10]}  Be4 {[%clk 0:00:28]} 45. a5 {[%clk 0:00:08]}  Bxd5 {[%clk 0:00:27]} 46. Rd8 {[%clk 0:00:08]}  Bxg3+ {[%clk 0:00:23]} 47. Kxg3 {[%clk 0:00:07]}  Bxc6 {[%clk 0:00:23]} 48. Rd6+ {[%clk 0:00:08]} 1-0


[Site "https://www.chess.com"]

[Event "Titled Tuesday Blitz May 23 Early 2023"]
[White "Pranav Anand"]
[Black "Manukyan, Sargis A."]
[WhiteFideId "46626786"]
[BlackFideId "13303970"]
[WhiteElo "2389"]
[BlackElo "2187"]
[Result "0-1"]
[Round "05"]
[TimeControl "180+2"]
[Date "2023.05.23"]
[WhiteClock "0:00:02"]
[BlackClock "0:00:20"]

1. d4 {[%clk 0:03:00]}  d5 {[%clk 0:02:59]} 2. c4 {[%clk 0:03:00]}  e6 {[%clk 0:02:58]} 3. Nc3 {[%clk 0:03:00]}  Nf6 {[%clk 0:02:59]} 4. cxd5 {[%clk 0:03:00]}  Nxd5 {[%clk 0:02:59]} 5. e4 {[%clk 0:02:59]}  Nxc3 {[%clk 0:02:59]} 6. bxc3 {[%clk 0:02:59]}  c5 {[%clk 0:03:00]} 7. Rb1 {[%clk 0:02:58]}  cxd4 {[%clk 0:03:00]} 8. cxd4 {[%clk 0:02:59]}  Nc6 {[%clk 0:02:58]} 9. Nf3 {[%clk 0:02:59]}  Bb4+ {[%clk 0:02:57]} 10. Bd2 {[%clk 0:02:59]}  Bxd2+ {[%clk 0:02:58]} 11. Qxd2 {[%clk 0:03:00]}  O-O {[%clk 0:02:58]} 12. Bb5 {[%clk 0:02:52]}  Bd7 {[%clk 0:02:44]} 13. O-O {[%clk 0:02:51]}  a6 {[%clk 0:02:44]} 14. Bd3 {[%clk 0:02:50]}  b5 {[%clk 0:02:44]} 15. Rbc1 {[%clk 0:02:44]}  Rc8 {[%clk 0:02:42]} 16. Rfe1 {[%clk 0:02:35]}  Re8 {[%clk 0:02:32]} 17. h4 {[%clk 0:02:30]}  h6 {[%clk 0:02:32]} 18. e5 {[%clk 0:02:19]}  Qa5 {[%clk 0:02:23]} 19. Qe2 {[%clk 0:01:44]}  Nb4 {[%clk 0:02:21]} 20. Bb1 {[%clk 0:01:44]}  Bc6 {[%clk 0:02:13]} 21. Nd2 {[%clk 0:01:23]}  Nxa2 {[%clk 0:02:02]} 22. Rc5 {[%clk 0:01:21]}  Nc3 {[%clk 0:01:49]} 23. Qd3 {[%clk 0:01:17]}  Nxb1 {[%clk 0:01:49]} 24. Rxb1 {[%clk 0:01:18]}  Bd5 {[%clk 0:01:45]} 25. Rbc1 {[%clk 0:01:17]}  Rxc5 {[%clk 0:01:42]} 26. dxc5 {[%clk 0:01:18]}  Rc8 {[%clk 0:01:42]} 27. h5 {[%clk 0:01:12]}  Qc7 {[%clk 0:01:31]} 28. Qd4 {[%clk 0:01:08]}  a5 {[%clk 0:01:29]} 29. Ne4 {[%clk 0:01:03]}  Bxe4 {[%clk 0:01:20]} 30. Qxe4 {[%clk 0:01:04]}  b4 {[%clk 0:01:21]} 31. c6 {[%clk 0:01:04]}  Qb6 {[%clk 0:01:07]} 32. c7 {[%clk 0:00:36]}  Rxc7 {[%clk 0:00:55]} 33. Qa8+ {[%clk 0:00:37]}  Kh7 {[%clk 0:00:55]} 34. Qe4+ {[%clk 0:00:37]}  g6 {[%clk 0:00:55]} 35. hxg6+ {[%clk 0:00:38]}  fxg6 {[%clk 0:00:55]} 36. Rd1 {[%clk 0:00:39]}  b3 {[%clk 0:00:45]} 37. Rd6 {[%clk 0:00:32]}  Qb7 {[%clk 0:00:23]} 38. Qb1 {[%clk 0:00:06]}  b2 {[%clk 0:00:23]} 39. Rd1 {[%clk 0:00:07]}  a4 {[%clk 0:00:22]} 40. Re1 {[%clk 0:00:08]}  a3 {[%clk 0:00:23]} 41. f4 {[%clk 0:00:06]}  Qb3 {[%clk 0:00:23]} 42. Qe4 {[%clk 0:00:05]}  a2 {[%clk 0:00:22]} 43. f5 {[%clk 0:00:05]}  exf5 {[%clk 0:00:21]} 44. Qf4 {[%clk 0:00:02]}  b1=Q {[%clk 0:00:21]} 45. e6 {[%clk 0:00:03]}  Qxe1+ {[%clk 0:00:21]} 46. Kh2 {[%clk 0:00:02]}  Re7 {[%clk 0:00:20]} 0-1


[Site "https://www.chess.com"]

[Event "Titled Tuesday Blitz May 23 Early 2023"]
[White "Lewicki, Miroslaw"]
[Black "Gharibyan, Mamikon"]
[WhiteFideId "1113380"]
[BlackFideId "13308300"]
[WhiteElo "2212"]
[BlackElo "2445"]
[Result "0-1"]
[Round "05"]
[TimeControl "180+2"]
[Date "2023.05.23"]
[WhiteClock "0:00:02"]
[BlackClock "0:01:11"]

1. b3 {[%clk 0:02:55]}  g6 {[%clk 0:02:57]} 2. Bb2 {[%clk 0:02:56]}  Nf6 {[%clk 0:02:57]} 3. e4 {[%clk 0:02:53]}  d6 {[%clk 0:02:57]} 4. Nf3 {[%clk 0:02:52]}  Bg7 {[%clk 0:02:57]} 5. Be2 {[%clk 0:02:46]}  O-O {[%clk 0:02:56]} 6. d3 {[%clk 0:02:47]}  a5 {[%clk 0:02:43]} 7. a3 {[%clk 0:02:45]}  c5 {[%clk 0:02:39]} 8. O-O {[%clk 0:02:45]}  a4 {[%clk 0:02:40]} 9. b4 {[%clk 0:02:43]}  Nc6 {[%clk 0:02:37]} 10. b5 {[%clk 0:02:35]}  Na5 {[%clk 0:02:36]} 11. Nbd2 {[%clk 0:02:33]}  c4 {[%clk 0:02:32]} 12. Nxc4 {[%clk 0:02:20]}  Nxc4 {[%clk 0:02:31]} 13. dxc4 {[%clk 0:02:21]}  Nxe4 {[%clk 0:02:31]} 14. Bxg7 {[%clk 0:02:22]}  Kxg7 {[%clk 0:02:32]} 15. Qd4+ {[%clk 0:02:22]}  Nf6 {[%clk 0:02:33]} 16. Rfd1 {[%clk 0:02:21]}  b6 {[%clk 0:02:32]} 17. Ne5 {[%clk 0:02:04]}  Bb7 {[%clk 0:02:29]} 18. Nc6 {[%clk 0:02:04]}  Qc7 {[%clk 0:02:24]} 19. Bf3 {[%clk 0:02:04]}  Bxc6 {[%clk 0:02:17]} 20. bxc6 {[%clk 0:02:01]}  Ra5 {[%clk 0:02:14]} 21. Rab1 {[%clk 0:01:59]}  Rc5 {[%clk 0:02:10]} 22. Rb4 {[%clk 0:01:59]}  Ra8 {[%clk 0:02:04]} 23. g4 {[%clk 0:01:51]}  h6 {[%clk 0:01:58]} 24. h4 {[%clk 0:01:42]}  Raa5 {[%clk 0:01:57]} 25. Bg2 {[%clk 0:01:39]}  Rxc6 {[%clk 0:01:51]} 26. Bxc6 {[%clk 0:01:35]}  Qxc6 {[%clk 0:01:52]} 27. f4 {[%clk 0:01:18]}  e5 {[%clk 0:01:41]} 28. Qxd6 {[%clk 0:01:07]}  Qf3 {[%clk 0:01:39]} 29. c5 {[%clk 0:00:33]}  Rxc5 {[%clk 0:01:32]} 30. Rd2 {[%clk 0:00:27]}  Nxg4 {[%clk 0:01:21]} 31. fxe5 {[%clk 0:00:21]}  Qg3+ {[%clk 0:01:13]} 32. Kf1 {[%clk 0:00:16]}  Rc3 {[%clk 0:01:12]} 33. Rxg4 {[%clk 0:00:01]}  Rf3+ {[%clk 0:01:11]} 34. Ke2 {[%clk 0:00:02]}  Qf2+ {[%clk 0:01:10]} 35. Kd1 {[%clk 0:00:02]}  Qf1# {[%clk 0:01:11]} 0-1


[Site "https://www.chess.com"]

[Event "Titled Tuesday Blitz May 23 Early 2023"]
[White "Kleiman, Jake"]
[Black "Rostovtsev, Dmitry"]
[WhiteFideId "2020041"]
[BlackFideId "34278320"]
[WhiteElo "2615"]
[BlackElo "2344"]
[Result "1-0"]
[Round "05"]
[TimeControl "180+2"]
[Date "2023.05.23"]
[WhiteClock "0:00:09"]
[BlackClock "0:00:00"]

1. e4 {[%clk 0:03:00]}  c5 {[%clk 0:02:57]} 2. c3 {[%clk 0:03:01]}  Nf6 {[%clk 0:02:57]} 3. e5 {[%clk 0:03:01]}  Nd5 {[%clk 0:02:57]} 4. Bc4 {[%clk 0:03:02]}  Nb6 {[%clk 0:02:56]} 5. Bb3 {[%clk 0:03:02]}  Nc6 {[%clk 0:02:50]} 6. Nf3 {[%clk 0:03:03]}  d5 {[%clk 0:02:47]} 7. exd6 {[%clk 0:03:03]}  c4 {[%clk 0:02:45]} 8. Bc2 {[%clk 0:03:04]}  Bg4 {[%clk 0:02:44]} 9. Qe2 {[%clk 0:02:51]}  e6 {[%clk 0:02:35]} 10. Na3 {[%clk 0:02:47]}  Bxd6 {[%clk 0:01:40]} 11. Nxc4 {[%clk 0:02:47]}  Nxc4 {[%clk 0:01:36]} 12. Qxc4 {[%clk 0:02:48]}  Bxf3 {[%clk 0:01:36]} 13. gxf3 {[%clk 0:02:49]}  O-O {[%clk 0:01:36]} 14. d4 {[%clk 0:02:28]}  Rc8 {[%clk 0:01:35]} 15. Qd3 {[%clk 0:02:27]}  g6 {[%clk 0:01:10]} 16. h4 {[%clk 0:02:10]}  Qc7 {[%clk 0:01:08]} 17. h5 {[%clk 0:01:54]}  Nb4 {[%clk 0:01:07]} 18. Qe2 {[%clk 0:01:50]}  Nxc2+ {[%clk 0:01:04]} 19. Qxc2 {[%clk 0:01:51]}  Bf4 {[%clk 0:00:56]} 20. Bxf4 {[%clk 0:01:35]}  Qxf4 {[%clk 0:00:55]} 21. Qe4 {[%clk 0:01:36]}  Qf6 {[%clk 0:00:35]} 22. hxg6 {[%clk 0:01:14]}  fxg6 {[%clk 0:00:35]} 23. O-O-O {[%clk 0:01:07]}  b5 {[%clk 0:00:20]} 24. Rd3 {[%clk 0:00:57]}  b4 {[%clk 0:00:19]} 25. Re3 {[%clk 0:00:56]}  bxc3 {[%clk 0:00:18]} 26. bxc3 {[%clk 0:00:57]}  Rc7 {[%clk 0:00:12]} 27. Kd2 {[%clk 0:00:52]}  Rcf7 {[%clk 0:00:10]} 28. Ke2 {[%clk 0:00:33]}  Rb8 {[%clk 0:00:06]} 29. Kd3 {[%clk 0:00:24]}  e5 {[%clk 0:00:02]} 30. Qxe5 {[%clk 0:00:12]}  Qa6+ {[%clk 0:00:02]} 31. c4 {[%clk 0:00:09]}  Rbb7 {[%clk 0:00:01]} 32. Qe8+ {[%clk 0:00:05]}  Kg7 {[%clk 0:00:01]} 33. Qe5+ {[%clk 0:00:06]}  Kg8 {[%clk 0:00:01]} 34. f4 {[%clk 0:00:04]}  Qa3+ {[%clk 0:00:01]} 35. Ke4 {[%clk 0:00:04]}  Rbe7 {[%clk 0:00:01]} 36. Rxa3 {[%clk 0:00:03]}  Rxe5+ {[%clk 0:00:01]} 37. dxe5 {[%clk 0:00:04]}  Re7 {[%clk 0:00:01]} 38. Rd3 {[%clk 0:00:05]}  Kg7 {[%clk 0:00:01]} 39. Rd6 {[%clk 0:00:06]}  Rf7 {[%clk 0:00:02]} 40. Rhd1 {[%clk 0:00:07]}  Rf5 {[%clk 0:00:02]} 41. Rd7+ {[%clk 0:00:08]}  Kh6 {[%clk 0:00:03]} 42. Rh1+ {[%clk 0:00:08]}  Rh5 {[%clk 0:00:00]} 43. Rxh5+ {[%clk 0:00:09]} 1-0


[Site "https://www.chess.com"]

[Event "Titled Tuesday Blitz May 23 Early 2023"]
[White "djokovic74"]
[Black "Bryakin, Mikhail"]
[BlackFideId "4165314"]
[WhiteElo "2599"]
[BlackElo "2467"]
[Result "1/2-1/2"]
[Round "05"]
[TimeControl "180+2"]
[Date "2023.05.23"]
[WhiteClock "0:00:05"]
[BlackClock "0:00:38"]

1. e4 {[%clk 0:03:00]}  e5 {[%clk 0:02:53]} 2. Nf3 {[%clk 0:03:01]}  Nf6 {[%clk 0:02:51]} 3. d4 {[%clk 0:03:00]}  Nxe4 {[%clk 0:02:50]} 4. Bd3 {[%clk 0:03:00]}  d5 {[%clk 0:02:48]} 5. Nxe5 {[%clk 0:03:01]}  Bd6 {[%clk 0:02:47]} 6. O-O {[%clk 0:02:53]}  O-O {[%clk 0:02:47]} 7. c4 {[%clk 0:02:53]}  c6 {[%clk 0:02:40]} 8. Nc3 {[%clk 0:02:53]}  Nxc3 {[%clk 0:02:40]} 9. bxc3 {[%clk 0:02:53]}  dxc4 {[%clk 0:02:40]} 10. Bxc4 {[%clk 0:02:51]}  Nd7 {[%clk 0:02:34]} 11. Bf4 {[%clk 0:02:28]}  Nxe5 {[%clk 0:02:30]} 12. Bxe5 {[%clk 0:02:11]}  Bxe5 {[%clk 0:02:30]} 13. dxe5 {[%clk 0:02:11]}  Be6 {[%clk 0:02:30]} 14. Bxe6 {[%clk 0:01:58]}  fxe6 {[%clk 0:02:31]} 15. Qb3 {[%clk 0:01:50]}  Qe7 {[%clk 0:02:31]} 16. Rad1 {[%clk 0:01:45]}  Rad8 {[%clk 0:02:31]} 17. h3 {[%clk 0:01:38]}  b6 {[%clk 0:02:28]} 18. Qc4 {[%clk 0:01:37]}  c5 {[%clk 0:02:23]} 19. Qe4 {[%clk 0:01:36]}  g6 {[%clk 0:02:20]} 20. Qc6 {[%clk 0:01:25]}  Rc8 {[%clk 0:01:56]} 21. Qd6 {[%clk 0:01:25]}  Rf7 {[%clk 0:01:49]} 22. Qxe7 {[%clk 0:01:09]}  Rxe7 {[%clk 0:01:50]} 23. Rd6 {[%clk 0:01:10]}  Kf7 {[%clk 0:01:50]} 24. Rfd1 {[%clk 0:01:09]}  Ke8 {[%clk 0:01:51]} 25. c4 {[%clk 0:01:03]}  Rb8 {[%clk 0:01:35]} 26. a4 {[%clk 0:01:01]}  Rc8 {[%clk 0:01:34]} 27. f4 {[%clk 0:00:52]}  Kf7 {[%clk 0:01:30]} 28. Kf2 {[%clk 0:00:49]}  Rec7 {[%clk 0:01:29]} 29. g4 {[%clk 0:00:46]}  Ke7 {[%clk 0:01:29]} 30. Ke3 {[%clk 0:00:44]}  Rf8 {[%clk 0:01:24]} 31. h4 {[%clk 0:00:41]}  Rg8 {[%clk 0:01:21]} 32. Ke4 {[%clk 0:00:26]}  Rf8 {[%clk 0:01:16]} 33. Rf1 {[%clk 0:00:21]}  Rd7 {[%clk 0:01:10]} 34. Rxd7+ {[%clk 0:00:19]}  Kxd7 {[%clk 0:01:11]} 35. Rh1 {[%clk 0:00:18]}  h6 {[%clk 0:00:55]} 36. h5 {[%clk 0:00:15]}  g5 {[%clk 0:00:55]} 37. fxg5 {[%clk 0:00:16]}  hxg5 {[%clk 0:00:56]} 38. h6 {[%clk 0:00:16]}  Rh8 {[%clk 0:00:56]} 39. h7 {[%clk 0:00:14]}  Ke7 {[%clk 0:00:57]} 40. Rh6 {[%clk 0:00:15]}  Kf7 {[%clk 0:00:57]} 41. Rf6+ {[%clk 0:00:11]}  Ke7 {[%clk 0:00:57]} 42. Rh6 {[%clk 0:00:11]}  Kf7 {[%clk 0:00:58]} 43. Ke3 {[%clk 0:00:11]}  a6 {[%clk 0:00:54]} 44. Ke4 {[%clk 0:00:10]}  Ke7 {[%clk 0:00:54]} 45. Kd3 {[%clk 0:00:09]}  Kd7 {[%clk 0:00:54]} 46. Ke4 {[%clk 0:00:07]}  Ke7 {[%clk 0:00:53]} 47. Ke3 {[%clk 0:00:07]}  Kf7 {[%clk 0:00:47]} 48. Ke4 {[%clk 0:00:05]}  Ke7 {[%clk 0:00:38]} 1/2-1/2


[Site "https://www.chess.com"]

[Event "Titled Tuesday Blitz May 23 Early 2023"]
[White "Sattarov, Bobir"]
[Black "Fiorito, Joaquin"]
[WhiteFideId "14203081"]
[BlackFideId "180173"]
[WhiteElo "2351"]
[BlackElo "2157"]
[Result "1-0"]
[Round "05"]
[TimeControl "180+2"]
[Date "2023.05.23"]
[WhiteClock "0:00:22"]
[BlackClock "0:00:10"]

1. e4 {[%clk 0:02:57]}  c6 {[%clk 0:03:00]} 2. d4 {[%clk 0:02:56]}  d5 {[%clk 0:03:00]} 3. exd5 {[%clk 0:02:57]}  cxd5 {[%clk 0:03:00]} 4. Bd3 {[%clk 0:02:58]}  Nc6 {[%clk 0:03:00]} 5. c3 {[%clk 0:02:58]}  Nf6 {[%clk 0:03:00]} 6. Bf4 {[%clk 0:02:59]}  Bg4 {[%clk 0:03:00]} 7. Qb3 {[%clk 0:02:59]}  Qd7 {[%clk 0:02:59]} 8. Nd2 {[%clk 0:02:59]}  e6 {[%clk 0:03:00]} 9. Ngf3 {[%clk 0:02:59]}  Bd6 {[%clk 0:03:00]} 10. Bxd6 {[%clk 0:02:59]}  Qxd6 {[%clk 0:03:01]} 11. O-O {[%clk 0:02:59]}  O-O {[%clk 0:03:02]} 12. Rae1 {[%clk 0:02:55]}  Qc7 {[%clk 0:03:01]} 13. Re3 {[%clk 0:02:31]}  Rab8 {[%clk 0:02:59]} 14. Ne5 {[%clk 0:02:24]}  Bh5 {[%clk 0:02:36]} 15. f4 {[%clk 0:02:21]}  b5 {[%clk 0:02:32]} 16. a3 {[%clk 0:02:10]}  Ne7 {[%clk 0:02:22]} 17. Qc2 {[%clk 0:02:05]}  Bg6 {[%clk 0:02:14]} 18. Bxg6 {[%clk 0:01:52]}  Nxg6 {[%clk 0:02:11]} 19. b4 {[%clk 0:01:26]}  a5 {[%clk 0:02:04]} 20. Nb3 {[%clk 0:01:26]}  Ne4 {[%clk 0:02:04]} 21. Nc5 {[%clk 0:01:20]}  Nxc5 {[%clk 0:01:57]} 22. dxc5 {[%clk 0:01:14]}  Rfd8 {[%clk 0:01:53]} 23. Qd3 {[%clk 0:01:10]}  Ne7 {[%clk 0:01:22]} 24. Rh3 {[%clk 0:00:58]}  h6 {[%clk 0:01:20]} 25. Rd1 {[%clk 0:00:46]}  d4 {[%clk 0:00:58]} 26. cxd4 {[%clk 0:00:44]}  Nd5 {[%clk 0:00:58]} 27. Qg3 {[%clk 0:00:37]}  Kf8 {[%clk 0:00:54]} 28. Rf1 {[%clk 0:00:26]}  axb4 {[%clk 0:00:31]} 29. axb4 {[%clk 0:00:27]}  Qa7 {[%clk 0:00:25]} 30. f5 {[%clk 0:00:26]}  exf5 {[%clk 0:00:24]} 31. Nc6 {[%clk 0:00:25]}  Qb7 {[%clk 0:00:15]} 32. Nxb8 {[%clk 0:00:24]}  Rxb8 {[%clk 0:00:16]} 33. Qd6+ {[%clk 0:00:22]}  Kg8 {[%clk 0:00:16]} 34. c6 {[%clk 0:00:22]}  Qa7 {[%clk 0:00:10]} 35. Qxd5 {[%clk 0:00:22]} 1-0


[Site "https://www.chess.com"]

[Event "Titled Tuesday Blitz May 23 Early 2023"]
[White "brm72"]
[Black "Ilamparthi A R"]
[BlackFideId "45015775"]
[WhiteElo "2589"]
[BlackElo "2348"]
[Result "1-0"]
[Round "05"]
[TimeControl "180+2"]
[Date "2023.05.23"]
[WhiteClock "0:00:09"]
[BlackClock "0:00:07"]

1. d4 {[%clk 0:03:00]}  Nf6 {[%clk 0:02:59]} 2. c4 {[%clk 0:03:00]}  g6 {[%clk 0:02:59]} 3. Nc3 {[%clk 0:03:00]}  Bg7 {[%clk 0:03:00]} 4. e4 {[%clk 0:03:00]}  d6 {[%clk 0:03:00]} 5. Nf3 {[%clk 0:03:00]}  O-O {[%clk 0:03:00]} 6. Be2 {[%clk 0:03:00]}  e5 {[%clk 0:02:57]} 7. Be3 {[%clk 0:02:57]}  Ng4 {[%clk 0:02:54]} 8. Bg5 {[%clk 0:02:57]}  f6 {[%clk 0:02:54]} 9. Bc1 {[%clk 0:02:56]}  Nh6 {[%clk 0:02:39]} 10. O-O {[%clk 0:02:50]}  Nc6 {[%clk 0:02:38]} 11. h3 {[%clk 0:02:37]}  f5 {[%clk 0:02:34]} 12. dxe5 {[%clk 0:02:31]}  Nxe5 {[%clk 0:02:16]} 13. Nxe5 {[%clk 0:02:19]}  dxe5 {[%clk 0:02:17]} 14. Qxd8 {[%clk 0:02:06]}  Rxd8 {[%clk 0:02:18]} 15. Bg5 {[%clk 0:02:06]}  Rd7 {[%clk 0:02:14]} 16. Rad1 {[%clk 0:02:02]}  Nf7 {[%clk 0:02:11]} 17. Be3 {[%clk 0:01:54]}  c6 {[%clk 0:02:08]} 18. b3 {[%clk 0:01:40]}  Rxd1 {[%clk 0:01:59]} 19. Rxd1 {[%clk 0:01:39]}  Be6 {[%clk 0:02:00]} 20. Na4 {[%clk 0:01:36]}  b6 {[%clk 0:01:54]} 21. Nc3 {[%clk 0:01:34]}  Kf8 {[%clk 0:01:49]} 22. Bc1 {[%clk 0:01:29]}  Ke8 {[%clk 0:01:40]} 23. f3 {[%clk 0:01:28]}  Bf8 {[%clk 0:01:38]} 24. Kf2 {[%clk 0:01:21]}  Bb4 {[%clk 0:01:14]} 25. Bb2 {[%clk 0:01:09]}  Ke7 {[%clk 0:01:10]} 26. Bd3 {[%clk 0:00:55]}  Bc5+ {[%clk 0:01:05]} 27. Ke2 {[%clk 0:00:55]}  Bd4 {[%clk 0:00:47]} 28. Na4 {[%clk 0:00:53]}  c5 {[%clk 0:00:40]} 29. Nc3 {[%clk 0:00:52]}  Rd8 {[%clk 0:00:38]} 30. Nd5+ {[%clk 0:00:40]}  Bxd5 {[%clk 0:00:36]} 31. Bxd4 {[%clk 0:00:39]}  cxd4 {[%clk 0:00:21]} 32. cxd5 {[%clk 0:00:35]}  Rc8 {[%clk 0:00:21]} 33. exf5 {[%clk 0:00:29]}  gxf5 {[%clk 0:00:20]} 34. Bxf5 {[%clk 0:00:30]}  Rc3 {[%clk 0:00:20]} 35. Bxh7 {[%clk 0:00:28]}  Kd6 {[%clk 0:00:19]} 36. Be4 {[%clk 0:00:27]}  Ng5 {[%clk 0:00:19]} 37. Rd3 {[%clk 0:00:24]}  Rc2+ {[%clk 0:00:18]} 38. Rd2 {[%clk 0:00:23]}  Rc3 {[%clk 0:00:19]} 39. Kf2 {[%clk 0:00:20]}  Re3 {[%clk 0:00:15]} 40. Re2 {[%clk 0:00:18]}  Rc3 {[%clk 0:00:15]} 41. h4 {[%clk 0:00:18]}  Nf7 {[%clk 0:00:15]} 42. g4 {[%clk 0:00:17]}  Rc1 {[%clk 0:00:15]} 43. Kg2 {[%clk 0:00:16]}  Ke7 {[%clk 0:00:13]} 44. Bg6 {[%clk 0:00:14]}  Kf6 {[%clk 0:00:09]} 45. Be4 {[%clk 0:00:11]}  Nd6 {[%clk 0:00:09]} 46. g5+ {[%clk 0:00:10]}  Kg7 {[%clk 0:00:08]} 47. h5 {[%clk 0:00:11]}  Rc3 {[%clk 0:00:07]} 48. h6+ {[%clk 0:00:09]}  Kf7 {[%clk 0:00:07]} 49. g6+ {[%clk 0:00:09]}  Kf6 {[%clk 0:00:07]} 50. g7 {[%clk 0:00:08]}  Kf7 {[%clk 0:00:08]} 51. Bh7 {[%clk 0:00:08]}  Rc8 {[%clk 0:00:07]} 52. g8=Q+ {[%clk 0:00:07]}  Rxg8+ {[%clk 0:00:07]} 53. Bxg8+ {[%clk 0:00:08]}  Kxg8 {[%clk 0:00:08]} 54. Rxe5 {[%clk 0:00:09]}  d3 {[%clk 0:00:09]} 55. Re1 {[%clk 0:00:09]}  Nf5 {[%clk 0:00:07]} 56. Kf2 {[%clk 0:00:09]} 1-0


[Site "https://www.chess.com"]